bitfinex/quotes_SOLUSD_20220228
["timestamp","ask_amount","ask_price","bid_price","bid_amount"]
[1646068056234,23.85797675,95.138,95.028,62.69]
[1646068056433,28.5732,95.137,95.028,62.69]
[1646068056734,10.43254852,95.136,95.028,62.69]
[1646068056936,5.94089038,95.135,95.028,62.69]
[1646068057834,1.73489038,95.135,95.028,62.69]
[1646068058434,1.73489038,95.135,95.027,24.2358]
[1646068059434,23.85797675,95.135,95.027,24.2358]
[1646068059636,1.81214454,95.134,95.027,24.2358]
[1646068060140,1.7115944,95.132,95.027,24.2358]
[1646068060334,1.7115944,95.132,95.028,62.69]
[1646068060536,25.56957115,95.132,95.028,62.69]
[1646068060736,23.85797675,95.132,95.028,62.69]
[1646068060937,15.16,95.13,95.028,62.69]
[1646068061138,1.81935448,95.129,95.028,62.69]
[1646068061336,4.207,95.128,95.028,62.69]
[1646068061536,33.06497675,95.128,95.028,62.69]
[1646068061743,1.43318539,95.127,95.028,62.69]
[1646068061938,4.207,95.126,95.028,62.69]
[1646068062740,23.1575,95.125,95.028,62.69]
[1646068063337,1.65628486,95.124,95.028,62.69]
[1646068063738,28.06497675,95.123,95.028,62.69]
[1646068063938,1.56774275,95.122,95.028,62.69]
[1646068064149,4.207,95.121,95.028,62.69]
[1646068064338,29.68434096,95.121,95.027,24.2358]
[1646068064539,1.59264092,95.119,95.027,24.2358]
[1646068064738,4.207,95.118,95.027,24.2358]
[1646068064940,28.06497675,95.118,95.027,24.2358]
[1646068065138,1.82441356,95.117,95.027,24.2358]
[1646068065342,5.57159553,95.116,95.027,24.2358]
[1646068065540,29.42957228,95.116,95.027,24.2358]
[1646068065739,25.25369479,95.115,95.027,24.2358]
[1646068065940,5.92906946,95.114,95.027,24.2358]
[1646068066339,1.39160196,95.112,95.027,24.2358]
[1646068066540,4.207,95.111,95.027,24.2358]
[1646068066740,15.16,95.11,95.026,58.40325098]
[1646068066944,5.9109292,95.109,95.026,58.40325098]
[1646068067140,29.76890595,95.109,95.026,58.40325098]
[1646068067340,1.779926,95.108,95.026,58.40325098]
[1646068067539,43.77373587,95.106,95.026,58.40325098]
[1646068067840,5.67687984,95.105,95.026,58.40325098]
[1646068068043,28.06497675,95.105,95.026,58.40325098]
[1646068068239,15.33095079,95.104,95.026,58.40325098]
[1646068068440,15.16,95.1,95.026,58.40325098]
[1646068068640,5.75178603,95.099,95.026,58.40325098]
[1646068068839,1.87263482,95.098,95.026,58.40325098]
[1646068069043,4.207,95.097,95.026,58.40325098]
[1646068069840,28.06497675,95.097,95.026,58.40325098]
[1646068070041,1.8566739,95.096,95.026,58.40325098]
[1646068070241,4.207,95.095,95.026,58.40325098]
[1646068071444,28.06497675,95.095,95.026,58.40325098]
[1646068071649,1.39756232,95.094,95.026,58.40325098]
[1646068071845,4.207,95.093,95.026,58.40325098]
[1646068072346,6.00278396,95.093,95.026,58.40325098]
[1646068072644,29.86076071,95.093,95.026,58.40325098]
[1646068072847,1.51195264,95.092,95.026,58.40325098]
[1646068073046,4.207,95.091,95.026,58.40325098]
[1646068073745,4.207,95.091,95.011,4.205]
[1646068073944,28.06497675,95.091,95.011,4.205]
[1646068074145,1.6603136,95.09,95.011,4.205]
[1646068074346,4.208,95.089,95.011,4.205]
[1646068074545,23.2378,95.088,95.012,48.05977723]
[1646068074746,4.208,95.087,95.012,48.05977723]
[1646068077248,23.2378,95.088,95.012,48.05977723]
[1646068077847,23.85797675,95.087,95.012,48.05977723]
[1646068078047,1.44155066,95.086,95.012,48.05977723]
[1646068078248,4.208,95.085,95.012,48.05977723]
[1646068078454,28.06597675,95.085,94.992,24.1892]
[1646068078649,1.8542463,95.079,94.992,24.1892]
[1646068078948,23.85797675,95.078,94.938,2.97919301]
[1646068079173,4.208,95.077,94.95,15.16]
[1646068079374,1.35290591,95.075,94.951,56.19050832]
[1646068079674,4.208,95.074,94.952,22.7549]
[1646068079873,15.16,95.06,94.952,22.7549]
[1646068080077,28.5825,95.059,94.952,22.7549]
[1646068080273,46.05203529,95.058,94.952,22.7549]
[1646068080473,5.80887728,95.057,94.952,22.7549]
[1646068080676,29.66685403,95.057,94.952,22.7549]
[1646068080874,1.80471241,95.056,94.952,22.7549]
[1646068081080,5.62808726,95.055,94.952,22.7549]
[1646068081274,29.48606401,95.055,94.952,22.7549]
[1646068081473,1.6979435,95.054,94.952,22.7549]
[1646068081674,15.16,95.04,94.952,22.7549]
[1646068081874,5.61587748,95.039,94.952,22.7549]
[1646068082074,19.4801005,95.038,94.953,47.28038239]
[1646068082375,5.94991946,95.037,94.953,47.28038239]
[1646068082676,1.49972341,95.035,94.953,47.28038239]
[1646068082873,4.21,95.034,94.953,47.28038239]
[1646068084675,20.3794,95.034,94.953,47.28038239]
[1646068085074,1.45695532,95.033,94.953,47.28038239]
[1646068085275,4.21,95.032,94.953,47.28038239]
[1646068086577,16.1694,95.034,94.953,47.28038239]
[1646068088577,16.1694,95.034,94.952,22.7549]
[1646068088778,4.21,95.033,94.952,22.7549]
[1646068089279,9.89,95.033,94.952,22.7549]
[1646068089480,9.89,95.033,94.953,50.24645727]
[1646068090483,4.21,95.033,94.953,50.24645727]
[1646068091783,5.80008975,95.033,94.92,15.16]
[1646068091985,15.16,95.03,94.929,23.5627]
[1646068092184,5.67686329,95.029,94.929,23.5627]
[1646068092684,5.67686329,95.029,94.929,79.75345254]
[1646068093183,29.53484004,95.029,94.929,79.75345254]
[1646068093386,41.70758406,95.029,94.929,79.75345254]
[1646068093587,1.6613103,95.028,94.929,79.75345254]
[1646068093785,4.211,95.027,94.929,79.75345254]
[1646068093984,4.211,95.027,94.903,2.93373168]
[1646068094190,14.47484942,95.027,94.885,104.5]
[1646068094385,189.51,95.02,94.875,45.6819]
[1646068094694,15.16,95.01,94.875,47.93447796]
[1646068094883,73.41331478,95.009,94.876,48.15627719]
[1646068095085,1.6264282,95.008,94.876,48.15627719]
[1646068095288,4.213,95.007,94.875,45.6819]
[1646068095492,189.51,94.99,94.875,45.6819]
[1646068095690,15.16,94.98,94.853,0.52692774]
[1646068095889,5.8697503,94.979,94.853,0.52692774]
[1646068096189,189.51,94.97,94.853,0.52692774]
[1646068096387,15.16,94.96,94.853,0.52692774]
[1646068096589,5.63191384,94.959,94.853,0.52692774]
[1646068096892,1.81385743,94.957,94.853,0.52692774]
[1646068097088,4.214,94.956,94.853,0.52692774]
[1646068097290,28.07197675,94.956,94.853,0.52692774]
[1646068097492,1.84255649,94.955,94.853,0.52692774]
[1646068097694,189.51,94.95,94.853,0.52692774]
[1646068097893,15.16,94.94,94.853,0.52692774]
[1646068098091,6.01936588,94.939,94.853,0.52692774]
[1646068098289,29.87734263,94.939,94.853,0.52692774]
[1646068098491,1.7409769,94.938,94.853,0.52692774]
[1646068098694,47.4489,94.939,94.853,0.52692774]
[1646068098891,15.16,94.94,94.853,0.52692774]
[1646068099092,4.215,94.954,94.853,0.52692774]
[1646068099292,27.387,94.967,94.854,2.74678921]
[1646068099593,23.172,94.967,94.854,2.74678921]
[1646068099991,23.85797675,94.955,94.854,2.74678921]
[1646068100891,23.85797675,94.955,94.866,62.69]
[1646068101093,23.85797675,94.955,94.871,167.19]
[1646068101291,23.172,94.967,94.872,2.91842708]
[1646068101893,23.172,94.967,94.873,2.57455761]
[1646068102296,19.4801005,94.969,94.886,104.5]
[1646068102491,19.4801005,94.969,94.911,62.69]
[1646068102690,19.4801005,94.969,94.921,62.69]
[1646068102890,19.4801005,94.969,94.922,2.97211016]
[1646068103091,19.4801005,94.969,94.922,2.4714735]
[1646068103290,19.4801005,94.969,94.912,2.3759029]
[1646068103893,19.4801005,94.969,94.922,104.5]
[1646068104094,19.4801005,94.969,94.922,107.00094651]
[1646068104292,19.4801005,94.969,94.925,167.19]
[1646068104495,0.0001005,94.969,94.931,62.69]
[1646068104694,0.0001005,94.969,94.932,2.73123852]
[1646068105093,0.0001005,94.969,94.934,167.19]
[1646068105292,0.0001005,94.969,94.935,2.48058614]
[1646068107497,0.0001005,94.969,94.942,2.68876058]
[1646068107892,0.0001005,94.969,94.942,107.18876058]
[1646068108094,0.0001005,94.969,94.942,2.68876058]
[1646068108693,0.0001005,94.969,94.954,104.5]
[1646068108895,0.0001005,94.969,94.956,2.43931291]
[1646068109099,0.0001005,94.969,94.958,167.19]
[1646068109294,0.0001005,94.969,94.961,104.5]
[1646068109496,45.664,95.059,94.968,167.19]
[1646068109696,45.664,95.059,94.98,15.16]
[1646068110695,4.208,95.058,94.98,15.16]
[1646068111098,4.208,95.058,94.97,62.69]
[1646068111606,4.208,95.058,94.969,24.6408]
[1646068111800,5.84526876,95.058,94.969,24.6408]
[1646068112000,21.16191218,95.058,94.969,24.6408]
[1646068112198,6.03277497,95.057,94.969,24.6408]
[1646068112601,1.66097631,95.055,94.969,24.6408]
[1646068112997,1.66097631,95.055,94.97,62.69]
[1646068113198,1.66097631,95.055,94.969,24.6408]
[1646068113199,61.0564,95.059,94.971,167.19]
[1646068113398,61.0564,95.059,94.971,62.69]
[1646068114199,61.0564,95.059,94.969,24.6408]
[1646068114401,1.46085981,95.058,94.969,24.6408]
[1646068115401,4.208,95.057,94.969,24.6408]
[1646068116402,1.46085981,95.058,94.969,24.6408]
[1646068116603,4.208,95.057,94.969,24.6408]
[1646068117405,23.73264342,95.057,94.969,24.6408]
[1646068117604,1.44596626,95.056,94.969,24.6408]
[1646068117807,1.44596626,95.056,94.934,3.09045569]
[1646068117808,4.208,95.055,94.934,3.09045569]
[1646068118003,23.73264342,95.055,94.935,24.9437]
[1646068118202,1.80101634,95.054,94.935,24.9437]
[1646068118403,15.16,95.05,94.935,24.9437]
[1646068118604,6.08194924,95.049,94.935,24.9437]
[1646068119005,6.08194924,95.049,94.936,62.69]
[1646068119405,6.08194924,95.049,94.938,62.69]
[1646068119605,6.08194924,95.049,94.941,167.19]
[1646068119805,6.08194924,95.049,94.941,62.69]
[1646068120506,1.35357124,95.047,94.936,62.69]
[1646068120708,4.21,95.046,94.936,62.69]
[1646068120907,4.21,95.046,94.941,62.69]
[1646068122511,4.21,95.046,94.935,24.9437]
[1646068122707,19.52464342,95.045,94.935,24.9437]
[1646068122911,5.79049497,95.044,94.935,24.9437]
[1646068123112,15.16,95.03,94.935,24.9437]
[1646068123309,53.56566871,95.029,94.935,24.9437]
[1646068123512,1.44141234,95.028,94.935,24.9437]
[1646068123811,4.211,95.027,94.935,24.9437]
[1646068125317,26.47260308,95.027,94.903,24.1029]
[1646068125521,26.47260308,95.027,94.88,15.16]
[1646068125522,21.0733037,95.026,94.88,15.16]
[1646068125744,5.61723158,95.025,94.881,2.74515314]
[1646068125916,5.61723158,95.025,94.881,48.4578]
[1646068125917,34.21022357,95.025,94.881,48.4578]
[1646068126119,1.86366445,95.024,94.882,2.61695716]
[1646068126317,15.16,95.01,94.887,104.5]
[1646068126519,26.25348645,95.009,94.896,62.69]
[1646068126716,1.78620352,95.008,94.896,62.69]
[1646068126917,4.212,95.007,94.896,62.69]
[1646068127120,23.47751361,95.008,94.897,24.2527]
[1646068127318,1.77281337,95.007,94.898,62.69]
[1646068127518,23.46412346,95.007,94.898,62.69]
[1646068127723,1.73374328,95.006,94.898,62.69]
[1646068127933,1.73374328,95.006,94.901,167.19]
[1646068128136,23.42505337,95.006,94.901,167.19]
[1646068128331,1.4167198,95.005,94.901,167.19]
[1646068128733,25.90331009,95.004,94.901,167.19]
[1646068128931,1.58649374,95.003,94.898,62.69]
[1646068129132,4.212,95.002,94.902,104.5]
[1646068129334,4.212,95.002,94.901,62.69]
[1646068129532,1.62642249,95.001,94.901,62.69]
[1646068129732,4.212,95.0,94.901,62.69]
[1646068129933,6.0477698,95.0,94.901,62.69]
[1646068130133,1.44026453,94.998,94.901,62.69]
[1646068130333,4.212,94.997,94.901,62.69]
[1646068130736,22.5016,94.996,94.901,62.69]
[1646068130933,22.5016,94.996,94.902,3.08239692]
[1646068131133,22.5016,94.996,94.907,62.69]
[1646068131333,22.5016,94.996,94.912,104.5]
[1646068131537,22.5016,94.996,94.914,104.5]
[1646068131936,1.55110418,95.009,94.919,62.69]
[1646068132133,4.212,95.023,94.936,104.5]
[1646068132333,4.212,95.019,94.947,62.69]
[1646068132535,4.211,95.024,94.951,62.69]
[1646068132733,23.0808,95.025,94.951,62.69]
[1646068133633,23.0808,95.025,94.938,65.23939251]
[1646068133835,23.0808,95.025,94.937,24.8489]
[1646068133836,23.0808,95.025,94.946,62.69]
[1646068134234,23.0808,95.025,94.945,104.5]
[1646068134235,23.0808,95.025,94.939,2.56291172]
[1646068134434,1.52221101,95.024,94.937,24.8489]
[1646068134635,4.211,95.023,94.937,24.8489]
[1646068135236,4.211,95.023,94.938,62.69]
[1646068135639,4.211,95.024,94.938,62.69]
[1646068135843,21.69131009,95.022,94.938,62.69]
[1646068136042,4.211,95.021,94.938,62.69]
[1646068136640,4.211,95.021,94.937,24.8489]
[1646068136839,5.60274438,95.021,94.937,24.8489]
[1646068137840,25.90231009,95.021,94.937,24.8489]
[1646068138143,1.45047585,95.02,94.937,24.8489]
[1646068138444,4.211,95.019,94.937,24.8489]
[1646068139545,25.90231009,95.019,94.937,24.8489]
[1646068139843,1.43384899,95.018,94.926,22.9998]
[1646068140049,15.16,95.01,94.893,23.7317]
[1646068140247,15.16,95.01,94.894,24.9888]
[1646068140248,1.6954357,95.009,94.894,24.9888]
[1646068140746,6.05908142,95.008,94.894,24.9888]
[1646068140949,46.2533,95.007,94.894,24.9888]
[1646068141147,5.69614437,95.006,94.894,24.9888]
[1646068141547,1.49741668,95.005,94.894,24.9888]
[1646068141747,15.16,94.99,94.894,24.9888]
[1646068141951,1.4660969,94.988,94.894,24.9888]
[1646068142152,4.213,94.987,94.894,24.9888]
[1646068142550,21.69087675,94.986,94.894,24.9888]
[1646068142750,5.63592125,94.985,94.894,24.9888]
[1646068142949,15.16,94.98,94.894,24.9888]
[1646068143152,1.8195067,94.979,94.894,24.9888]
[1646068143751,24.6512,94.978,94.894,24.9888]
[1646068143952,1.72229074,94.977,94.894,24.9888]
[1646068144954,1.72229074,94.977,94.853,0.52692774]
[1646068145154,4.214,94.976,94.853,0.52692774]
[1646068145354,5.8429618,94.976,94.853,0.52692774]
[1646068145553,21.69087675,94.975,94.853,0.52692774]
[1646068145754,15.16,94.96,94.853,0.52692774]
[1646068145954,30.37641461,94.959,94.853,0.52692774]
[1646068146157,1.7913182,94.958,94.853,0.52692774]
[1646068146354,4.214,94.957,94.853,0.52692774]
[1646068146554,5.93066836,94.957,94.853,0.52692774]
[1646068148156,5.93066836,94.957,94.855,62.69]
[1646068148456,5.93066836,94.957,94.855,167.19]
[1646068148660,27.62154511,94.957,94.853,0.52692774]
[1646068148857,33.98154511,94.957,94.853,0.52692774]
[1646068149156,1.40510127,94.956,94.853,0.52692774]
[1646068149357,4.214,94.955,94.853,0.52692774]
[1646068149556,15.16,94.94,94.853,0.52692774]
[1646068149758,30.62918129,94.939,94.853,0.52692774]
[1646068149957,1.40662156,94.938,94.853,0.52692774]
[1646068150160,4.215,94.937,94.853,0.52692774]
[1646068150358,11.68350628,94.937,94.853,0.52692774]
[1646068150565,47.01425875,94.936,94.853,0.52692774]
[1646068150758,1.6834813,94.935,94.853,0.52692774]
[1646068150958,27.58935805,94.935,94.853,0.52692774]
[1646068151165,23.46440255,94.934,94.853,0.52692774]
[1646068151358,15.16,94.92,94.853,0.52692774]
[1646068151556,1.48951783,94.918,94.853,0.52692774]
[1646068152559,24.5764,94.919,94.853,0.52692774]
[1646068152966,4.215,94.932,94.853,0.52692774]
[1646068153359,27.2593,94.957,94.853,0.52692774]
[1646068155160,23.07754342,94.939,94.853,0.52692774]
[1646068156161,1.68446922,94.949,94.853,0.52692774]
[1646068156162,24.3653,94.935,94.853,0.52692774]
[1646068156763,27.29254342,94.934,94.853,0.52692774]
[1646068157264,23.07754342,94.933,94.853,0.52692774]
[1646068158063,24.3653,94.935,94.853,0.52692774]
[1646068158263,47.44284342,94.935,94.853,0.52692774]
[1646068158968,4.215,94.934,94.853,0.52692774]
[1646068159167,10.155,94.934,94.853,0.52692774]
[1646068159368,24.71072695,94.933,94.853,0.52692774]
[1646068159666,1.41070163,94.929,94.853,0.52692774]
[1646068159866,4.215,94.928,94.853,0.52692774]
[1646068160065,27.29254342,94.928,94.853,0.52692774]
[1646068160267,23.07754342,94.927,94.853,0.52692774]
[1646068160465,4.215,94.926,94.853,0.52692774]
[1646068160866,23.07754342,94.925,94.853,0.52692774]
[1646068161067,29.1998,94.924,94.853,0.52692774]
[1646068161269,24.9848,94.924,94.853,0.52692774]
[1646068161474,23.07754342,94.923,94.853,0.52692774]
[1646068161867,1.61354072,94.922,94.853,0.52692774]
[1646068162072,15.16,94.92,94.853,0.52692774]
[1646068162269,6.01839032,94.919,94.853,0.52692774]
[1646068162467,29.09593374,94.919,94.853,0.52692774]
[1646068162670,1.4864807,94.918,94.853,0.52692774]
[1646068162875,24.56402412,94.918,94.853,0.52692774]
[1646068163071,1.72031942,94.917,94.853,0.52692774]
[1646068163271,24.79786284,94.917,94.853,0.52692774]
[1646068163672,23.07754342,94.917,94.853,0.52692774]
[1646068163872,15.16,94.92,94.853,0.52692774]
[1646068164077,23.07754342,94.931,94.853,0.52692774]
[1646068164273,4.215,94.938,94.853,0.52692774]
[1646068164473,23.07754342,94.945,94.853,0.52692774]
[1646068164672,13.51498538,94.958,94.853,0.52692774]
[1646068165876,23.07754342,94.959,94.855,167.19]
[1646068166076,24.0645,94.969,94.871,167.19]
[1646068166274,24.0645,94.969,94.874,2.5210889]
[1646068166473,23.07754342,94.968,94.874,2.5210889]
[1646068166678,4.214,94.967,94.874,2.5210889]
[1646068167077,24.0645,94.969,94.88,15.16]
[1646068167375,24.0645,94.969,94.882,2.52027631]
[1646068168376,23.07754342,94.984,94.884,167.19]
[1646068168576,24.0573,94.995,94.885,2.38075886]
[1646068168780,24.0573,94.995,94.891,167.19]
[1646068168978,24.0573,94.995,94.892,2.9054407]
[1646068169211,24.0573,94.995,94.893,167.19]
[1646068169398,20.3134,95.02,94.894,2.94564356]
[1646068169598,4.213,95.02,94.896,167.19]
[1646068169800,23.07754342,95.019,94.911,167.19]
[1646068170001,4.212,95.018,94.913,167.19]
[1646068170201,4.212,95.018,94.914,2.51694986]
[1646068170599,23.07754342,95.017,94.914,2.51694986]
[1646068170800,4.212,95.016,94.914,2.51694986]
[1646068171204,23.07754342,95.015,94.914,2.51694986]
[1646068171903,6.07800226,95.014,94.914,2.51694986]
[1646068172102,6.07800226,95.014,94.913,62.69]
[1646068172302,1.43831945,95.012,94.913,62.69]
[1646068172704,1.53452573,95.01,94.913,62.69]
[1646068173202,1.35446909,95.008,94.912,23.8433]
[1646068173604,1.85720043,95.006,94.912,23.8433]
[1646068174205,1.48918717,95.004,94.912,23.8433]
[1646068174602,23.07754342,95.003,94.912,23.8433]
[1646068174905,1.40312798,95.002,94.912,23.8433]
[1646068175304,24.6014,95.001,94.912,23.8433]
[1646068175602,1.40989587,95.0,94.912,23.8433]
[1646068175804,4.212,94.999,94.912,23.8433]
[1646068176003,5.60769224,94.999,94.912,23.8433]
[1646068176202,23.07754342,94.998,94.912,23.8433]
[1646068176402,1.76815274,94.997,94.912,23.8433]
[1646068176806,1.840507,94.995,94.912,23.8433]
[1646068178305,23.07754342,94.996,94.913,104.5]
[1646068178504,24.6014,95.001,94.913,104.5]
[1646068178703,24.6014,95.001,94.912,23.8433]
[1646068178903,23.07754342,95.0,94.912,23.8433]
[1646068179407,24.6014,95.001,94.912,23.8433]
[1646068179604,24.6014,95.001,94.913,104.5]
[1646068179805,24.6014,95.001,94.912,23.8433]
[1646068180004,38.29612008,95.0,94.913,113.55943535]
[1646068180204,38.29612008,95.0,94.914,2.35275364]
[1646068180805,4.212,95.017,94.927,62.69]
[1646068181009,4.211,95.029,94.944,104.5]
[1646068181204,4.211,95.029,94.945,62.69]
[1646068181608,23.07754342,95.028,94.945,62.69]
[1646068181807,23.07754342,95.028,94.95,104.5]
[1646068182010,46.7687,95.039,94.958,104.5]
[1646068182207,46.7687,95.039,94.963,62.15350589]
[1646068182805,43.1873981,95.038,94.965,62.15350589]
[1646068183707,23.07754342,95.037,94.955,23.3578]
[1646068184117,5.76008718,95.036,94.955,23.3578]
[1646068184310,5.76008718,95.036,94.93,15.16]
[1646068184512,1.86689163,95.034,94.93,15.16]
[1646068184809,23.07754342,95.033,94.932,53.60831732]
[1646068185011,1.83761056,95.032,94.932,53.60831732]
[1646068185211,4.211,95.031,94.933,24.4721]
[1646068185410,27.28854342,95.031,94.933,24.4721]
[1646068185610,24.60940085,95.03,94.933,24.4721]
[1646068185810,1.47138069,95.029,94.933,24.4721]
[1646068186010,23.07754342,95.029,94.933,24.4721]
[1646068186211,15.16,95.02,94.9,15.16]
[1646068186411,5.61066304,95.019,94.891,2.36599868]
[1646068186612,22.7037,95.018,94.916,23.1288]
[1646068186814,5.74845813,95.017,94.916,23.1288]
[1646068187015,1.08643827,95.016,94.917,50.91612114]
[1646068187212,2.81748107,95.016,94.917,50.91612114]
[1646068187413,27.28954342,95.015,94.917,50.91612114]
[1646068187615,1.59156863,95.014,94.917,50.91612114]
[1646068187915,1.83199195,95.009,94.917,50.91612114]
[1646068188316,23.07754342,95.008,94.917,50.91612114]
[1646068188522,26.53109175,95.007,94.917,50.91612114]
[1646068188717,1.5198976,95.006,94.917,50.91612114]
[1646068188916,24.59744102,95.006,94.917,50.91612114]
[1646068189116,24.8768,95.007,94.917,50.91612114]
[1646068189117,24.87186128,95.005,94.917,50.91612114]
[1646068189317,1.39234665,95.004,94.917,50.91612114]
[1646068189522,24.46989007,95.004,94.917,50.91612114]
[1646068189719,1.49884558,95.003,94.917,50.91612114]
[1646068189916,1.46488916,95.002,94.917,50.91612114]
[1646068190118,37.04813846,95.001,94.916,23.1288]
[1646068190418,1.50812284,94.999,94.916,23.1288]
[1646068191018,1.63400624,94.997,94.916,23.1288]
[1646068191219,1.63400624,94.997,94.917,48.3173827]
[1646068191417,46.44104342,94.996,94.917,48.3173827]
[1646068191624,1.45055946,94.995,94.917,48.3173827]
[1646068191818,4.212,94.994,94.892,104.5]
[1646068192022,15.16,94.99,94.892,104.5]
[1646068192321,5.65348848,94.989,94.892,104.5]
[1646068192520,28.7310319,94.989,94.892,129.4134]
[1646068192719,1.85157374,94.988,94.894,104.5]
[1646068192919,24.92911716,94.988,94.894,104.5]
[1646068193121,24.87035062,94.987,94.894,104.5]
[1646068193322,9.10001514,94.986,94.894,104.5]
[1646068193522,32.17755856,94.986,94.894,104.5]
[1646068193719,49.05200174,94.985,94.894,104.5]
[1646068193920,5.74752532,94.984,94.894,104.5]
[1646068194120,28.82506874,94.984,94.894,104.5]
[1646068194321,24.5272926,94.983,94.894,104.5]
[1646068194623,4.213,94.982,94.894,104.5]
[1646068194821,27.29054342,94.982,94.894,104.5]
[1646068195923,23.07754342,94.981,94.893,43.36981627]
[1646068196126,4.213,94.98,94.893,43.36981627]
[1646068197128,23.07754342,94.979,94.893,43.36981627]
[1646068197328,6.07594658,94.978,94.893,43.36981627]
[1646068197525,6.07594658,94.978,94.857,2.57032695]
[1646068197727,23.07754342,94.977,94.872,24.6441]
[1646068197925,23.07754342,94.977,94.855,23.6133]
[1646068197926,4.213,94.976,94.826,2.6161441]
[1646068198126,5.91614028,94.976,94.841,62.69]
[1646068198325,23.07754342,94.975,94.841,62.69]
[1646068198525,37.04813846,94.959,94.857,59.17939395]
[1646068198727,28.3107,94.958,94.858,24.6441]
[1646068198926,1.43023583,94.957,94.858,24.6441]
[1646068199129,4.214,94.956,94.858,24.6441]
[1646068199331,4.214,94.956,94.859,62.69]
[1646068199530,23.07754342,94.956,94.859,62.69]
[1646068199733,24.64639895,94.955,94.858,24.6441]
[1646068199931,15.16,94.95,94.858,24.6441]
[1646068200135,4.214,94.949,94.858,24.6441]
[1646068200332,28.64340407,94.949,94.9,50.0]
[1646068200531,1.60334788,94.948,94.9,50.0]
[1646068200734,5.77565101,94.947,94.9,50.0]
[1646068200933,28.85267443,94.947,94.9,50.0]
[1646068201133,1.42538666,94.946,94.9,50.0]
[1646068201333,7.22569791,94.944,94.9,50.0]
[1646068201535,15.16,94.94,94.9,50.0]
[1646068201735,1.53271298,94.939,94.833,24.0088]
[1646068201936,4.215,94.938,94.825,4.214]
[1646068202139,27.29202342,94.938,94.825,4.214]
[1646068202338,1.5861973,94.937,94.825,4.214]
[1646068202534,1.67268998,94.935,94.825,4.214]
[1646068202952,4.215,94.934,94.825,4.214]
[1646068203152,15.16,94.92,94.825,4.214]
[1646068203356,1.75661355,94.918,94.825,4.214]
[1646068203553,4.215,94.917,94.825,4.214]
[1646068203754,16.34331871,94.917,94.825,4.214]
[1646068204057,1.47125594,94.916,94.825,4.214]
[1646068204253,4.216,94.915,94.825,4.214]
[1646068204455,25.99000024,94.915,94.825,4.214]
[1646068204654,1.7061063,94.914,94.825,4.214]
[1646068204860,4.216,94.913,94.825,4.214]
[1646068205059,15.16,94.9,94.825,4.214]
[1646068205254,5.9841125,94.899,94.825,4.214]
[1646068205456,29.99852259,94.899,94.825,4.214]
[1646068205656,1.40427806,94.898,94.825,4.214]
[1646068205856,4.216,94.897,94.825,4.214]
[1646068206059,5.59140672,94.897,94.825,4.214]
[1646068206256,30.85945014,94.897,94.825,4.214]
[1646068206457,27.10843574,94.896,94.825,4.214]
[1646068206657,5.61891856,94.895,94.825,4.214]
[1646068206857,15.16,94.89,94.825,4.214]
[1646068207060,5.73316686,94.889,94.825,4.214]
[1646068207261,1.51716686,94.889,94.742,62.69]
[1646068207466,94.82364342,94.888,94.743,2.85488708]
[1646068207659,1.80240201,94.887,94.74,63.0884]
[1646068207862,131.57044543,94.887,94.74,47.9284]
[1646068208162,0.4,94.868,94.741,52.72011127]
[1646068208364,15.16,94.86,94.741,52.22011127]
[1646068208562,26.16392588,94.859,94.741,52.22011127]
[1646068208761,1.44697057,94.858,94.741,114.91011127]
[1646068208961,9.2790765,94.858,94.742,104.5]
[1646068209158,23.1514,94.857,94.741,114.91011127]
[1646068209362,1.51299094,94.856,94.745,167.19]
[1646068209562,1.51299094,94.856,94.745,62.69]
[1646068209758,12.12831871,94.855,94.745,62.69]
[1646068209959,1.84297075,94.854,94.745,62.69]
[1646068210163,15.16,94.85,94.746,2.93171154]